[Event "Almaty Open 2019"]
[Site "Almaty"]
[Date "2019.10.11"]
[Round "6.12"]
[White "Kembayev, Bakhytzhan"]
[Black "Stupak, Kirill"]
[Result "1/2-1/2"]
[ECO "E62"]
[WhiteElo "2119"]
[BlackElo "2551"]
[Annotator "ChessBase"]
[PlyCount "156"]
[EventDate "2019.10.07"]
[EventType "swiss"]
[EventCountry "KAZ"]
[SourceTitle "playchess.com"]
[Source "ChessBase"]
[SourceQuality "1"]
[TimeControl "5400+30"]

1. d4 {[%emt 0:00:18]} g6 {[%emt 0:02:11]} 2. c4 {[%emt 0:00:10]} Bg7 {[%emt 0:00:06]} 3. Nf3 {[%emt 0:00:03]} Nf6 {[%emt 0:00:09]} 4. Nc3 {[%emt 0:00:08]} O-O {[%emt 0:00:06]} 5. g3 {[%emt 0:01:11]} d6 {[%emt 0:01:24]} 6. Bg2 {[%emt 0:00:13]} c6 {[%emt 0:00:04]} 7. O-O {[%emt 0:00:25]} Bf5 {[%emt 0:00:09]} 8. b3 {[%emt 0:06:02]} Ne4 {[%emt 0:02:06]} 9. Bb2 {[%emt 0:02:06]} Qa5 {[%emt 0:03:00]} 10. Nxe4 {[%emt 0:07:45]} Bxe4 {[%emt 0:00:02]} 11. e3 {[%emt 0:00:21]} b5 {[%emt 0:06:17]} 12. Qd2 {[%emt 0:15:56]} Qxd2 {[%emt 0:06:08]} 13. Nxd2 {[%emt 0:00:03]} Bxg2 {[%emt 0:00:05]} 14. Kxg2 {[%emt 0:00:07]} bxc4 {[%emt 0:00:06]} 15. Nxc4 {[%emt 0:01:21]} Nd7 {[%emt 0:00:14]} 16. Rfc1 {[%emt 0:01:23]} c5 {[%emt 0:05:58]} 17. dxc5 {[%emt 0:06:22]} Nxc5 {[%emt 0:00:50]} 18. Bxg7 {[%emt 0:00:08]} Kxg7 {[%emt 0:00:03]} 19. Rc2 {[%emt 0:01:36]} Rfb8 {[%emt 0:10:37]} 20. Nb2 {[%emt 0:02:28]} a5 {[%emt 0:01:10]} 21. Rd1 {[%emt 0:00:40]} Na6 {[%emt 0:09:44]} 22. Nd3 {[%emt 0:02:34]} Rb5 {[%emt 0:00:48]} 23. Rdc1 {[%emt 0:08:35]} Ra7 {[%emt 0:04:27]} 24. Rc6 {[%emt 0:08:56]} Rbb7 {[%emt 0:01:53]} 25. e4 {[%emt 0:09:23]} Nb8 {[%emt 0:00:51]} 26. R6c3 {[%emt 0:00:32]} Nd7 {[%emt 0:00:45]} 27. f3 {[%emt 0:07:19]} f5 {[%emt 0:04:23]} 28. Rc4 {[%emt 0:07:50]} Nb6 {[%emt 0:04:51]} 29. Rc6 {[%emt 0:01:21]} Nd7 {[%emt 0:00:30]} 30. Re1 {[%emt 0:03:43]} fxe4 {[%emt 0:02:26]} 31. fxe4 {[%emt 0:00:19]} Rb5 {[%emt 0:02:25]} 32. Rec1 {[%emt 0:01:20]} Kf7 {[%emt 0:01:08]} 33. Rc7 {[%emt 0:00:39]} Rxc7 {[%emt 0:00:45]} 34. Rxc7 {[%emt 0:00:03]} Nf6 {[%emt 0:00:01]} 35. Kf3 {[%emt 0:00:20]} g5 {[%emt 0:00:01]} 36. h3 {[%emt 0:00:14]} Ke6 {[%emt 0:03:51]} 37. Rc8 {[%emt 0:02:46]} h5 {[%emt 0:02:33]} 38. g4 {[%emt 0:00:49]} hxg4+ {[%emt 0:09:05]} 39. hxg4 {[%emt 0:00:02]} Nd7 {[%emt 0:00:02]} 40. Ke3 {[%emt 0:01:14]} Nf6 {[%emt 0:10:35]} 41. Kf3 {[%emt 0:00:13]} Kd7 {[%emt 0:00:09]} 42. Rf8 {[%emt 0:01:21]} Kc7 {[%emt 0:01:56]} 43. Rf7 {[%emt 0:00:21]} Kd8 {[%emt 0:00:08]} 44. Rf8+ {[%emt 0:01:21]} Kd7 {[%emt 0:00:01]} 45. Ra8 {[%emt 0:00:23]} Kc6 {[%emt 0:00:08]} 46. Rc8+ {[%emt 0:00:21]} Kb7 {[%emt 0:00:22]} 47. Rf8 {[%emt 0:00:15]} Kc7 {[%emt 0:02:19]} 48. Rf7 {[%emt 0:00:15]} Kd7 {[%emt 0:01:18]} 49. Rf8 {[%emt 0:00:08]} d5 {[%emt 0:00:35]} 50. exd5 {[%emt 0:01:27]} Rxd5 {[%emt 0:00:07]} 51. Nf2 {[%emt 0:00:22]} a4 {[%emt 0:05:22]} 52. Ne4 {[%emt 0:00:31]} axb3 {[%emt 0:00:57]} 53. Nxf6+ {[%emt 0:00:13]} exf6 {[%emt 0:00:04]} 54. axb3 {[%emt 0:00:11]} Rd6 {[%emt 0:00:44]} 55. Rb8 {[%emt 0:00:33]} Ke6 {[%emt 0:00:22]} 56. Ke4 {[%emt 0:00:08]} Rc6 {[%emt 0:00:31]} 57. Re8+ {[%emt 0:00:52]} Kf7 {[%emt 0:00:14]} 58. Rd8 {[%emt 0:00:12]} Rb6 {[%emt 0:00:45]} 59. Rd3 {[%emt 0:00:13]} Ke6 {[%emt 0:00:04]} 60. Re3 {[%emt 0:00:27]} Rb4+ {[%emt 0:00:23]} 61. Kf3+ {[%emt 0:00:05]} Kd5 {[%emt 0:00:08]} 62. Rd3+ {[%emt 0:00:06]} Kc5 {[%emt 0:00:19]} 63. Rc3+ {[%emt 0:00:42]} Kd6 {[%emt 0:00:32]} 64. Rd3+ {[%emt 0:00:06]} Ke6 {[%emt 0:00:05]} 65. Re3+ {[%emt 0:00:05]} Kf7 {[%emt 0:00:02]} 66. Kg3 {[%emt 0:00:08]} Kg6 {[%emt 0:00:20]} 67. Kf3 {[%emt 0:00:10]} Rb6 {[%emt 0:00:18]} 68. Kg3 {[%emt 0:00:05]} Rb5 {[%emt 0:01:41]} 69. Kf3 {[%emt 0:00:08]} f5 {[%emt 0:00:06]} 70. gxf5+ {[%emt 0:00:03]} Rxf5+ {[%emt 0:00:03]} 71. Kg3 {[%emt 0:00:09]} Rf4 {[%emt 0:00:05]} 72. Rd3 {[%emt 0:00:17]} Rf1 {[%emt 0:00:12]} 73. Kg2 {[%emt 0:00:21]} Rb1 {[%emt 0:00:06]} 74. Kg3 {[%emt 0:00:13]} Kf5 {[%emt 0:00:07]} 75. Rc3 {[%emt 0:00:07]} Ke4 {[%emt 0:00:39]} 76. Rc4+ {[%emt 0:00:17]} Kd5 {[%emt 0:00:08]} 77. Rg4 {[%emt 0:00:25]} Rxb3+ {[%emt 0:00:03]} 78. Kg2 {[%emt 0:00:04]} Rb5 {[%emt 0:00:03]} 1/2-1/2

[Event "Almaty Open 2019"]
[Site "Almaty"]
[Date "2019.10.11"]
[Round "6.13"]
[White "Dzhumaev, Marat"]
[Black "Malygin, Vladislav"]
[Result "1-0"]
[ECO "D02"]
[WhiteElo "2428"]
[BlackElo "1941"]
[Annotator "ChessBase"]
[PlyCount "57"]
[EventDate "2019.10.07"]
[EventType "swiss"]
[EventCountry "KAZ"]
[SourceTitle "playchess.com"]
[Source "ChessBase"]
[SourceQuality "1"]
[TimeControl "5400+30"]

1. d4 {[%emt 0:00:09]} d5 {[%emt 0:00:00]} 2. Nf3 {[%emt 0:00:14]} Nf6 {[%emt 0:00:00]} 3. c4 {[%emt 0:00:45]} e6 {[%emt 0:00:00]} 4. e3 {[%emt 0:00:42]} Be7 {[%emt 0:00:29]} 5. Nc3 {[%emt 0:01:00]} O-O {[%emt 0:00:17]} 6. Qc2 {[%emt 0:00:44]} Nbd7 {[%emt 0:01:06]} 7. Bd3 {[%emt 0:05:59]} dxc4 {[%emt 0:01:26]} 8. Bxc4 {[%emt 0:00:12]} c5 {[%emt 0:00:12]} 9. O-O {[%emt 0:00:56]} a6 {[%emt 0:02:07]} 10. a4 {[%emt 0:03:21]} b6 {[%emt 0:03:46]} 11. Rd1 {[%emt 0:08:46]} Bb7 {[%emt 0:06:33]} 12. dxc5 {[%emt 0:10:05]} Bxc5 {[%emt 0:00:17]} 13. b3 {[%emt 0:00:48]} Qc7 {[%emt 0:00:38]} 14. Bb2 {[%emt 0:00:16]} Ne5 {[%emt 0:20:19]} 15. Nxe5 {[%emt 0:01:05]} Qxe5 {[%emt 0:00:06]} 16. Nd5 {[%emt 0:00:44]} Qg5 {[%emt 0:00:15]} 17. Nxf6+ {[%emt 0:01:39]} gxf6 {[%emt 0:00:10]} 18. Bf1 {[%emt 0:00:19]} Rfd8 {[%emt 0:04:54]} 19. Qc3 {[%emt 0:08:38]} Kg7 {[%emt 0:02:11]} 20. a5 {[%emt 0:34:29]} Bd6 {[%emt 0:06:55]} 21. f4 {[%emt 0:02:02]} Qg6 {[%emt 0:00:19]} 22. Rxd6 {[%emt 0:11:31]} Rxd6 {[%emt 0:00:57]} 23. Qc7 {[%emt 0:00:09]} Bxg2 {[%emt 0:02:04]} 24. f5 {[%emt 0:00:12]} Rc6 {[%emt 0:01:45]} 25. Qxc6 {[%emt 0:01:32]} Bxc6+ {[%emt 0:01:08]} 26. fxg6 {[%emt 0:00:10]} bxa5 {[%emt 0:01:02]} 27. gxh7 {[%emt 0:00:18]} Rb8 {[%emt 0:01:18]} 28. Rxa5 {[%emt 0:00:18]} Rxb3 {[%emt 0:01:42]} 29. Rh5 {[%emt 0:00:18]} 1-0

[Event "Almaty Open 2019"]
[Site "Almaty"]
[Date "2019.10.11"]
[Round "6.14"]
[White "Dauletova, Gulmira"]
[Black "Nukin, Tolegen"]
[Result "1-0"]
[ECO "B42"]
[WhiteElo "2259"]
[BlackElo "2104"]
[Annotator "NA"]
[PlyCount "59"]
[EventDate "2019.10.07"]
[EventType "swiss"]
[EventCountry "KAZ"]
[SourceTitle "playchess.com"]
[Source "ChessBase"]
[SourceQuality "1"]
[TimeControl "5400+30"]

1. e4 {[%emt 0:00:00]} c5 {[%emt 0:00:22]} 2. Nf3 {[%emt 0:00:00]} e6 {[%emt 0:00:47]} 3. d4 {[%emt 0:00:00]} cxd4 {[%emt 0:00:02]} 4. Nxd4 {[%emt 0:00:07]} a6 {[%emt 0:00:06]} 5. Bd3 {[%emt 0:00:22]} Nf6 $14 {[%emt 0:00:14]} 6. O-O {[%emt 0:00:23]} d6 {[%emt 0:00:15]} 7. c4 {[%emt 0:00:42]} Be7 {[%emt 0:00:34]} 8. Nc3 {[%emt 0:00:40]} O-O {[%emt 0:00:36]} 9. f4 {[%emt 0:03:24]} Re8 {[%emt 0:00:46]} 10. Be3 {[%emt 0:06:49]} Nbd7 {[%emt 0:01:25]} 11. Qf3 {[%emt 0:09:47]} Bf8 {[%emt 0:01:47]} 12. Rad1 {[%emt 0:03:58]} e5 {[%emt 0:09:47]} 13. Nf5 {[%emt 0:01:04]} exf4 {[%emt 0:00:24]} 14. Qxf4 {[%emt 0:07:33]} Qc7 {[%emt 0:15:32]} 15. Nd5 {[%emt 0:16:20]} Qc6 {[%emt 0:10:32]} 16. Bd4 {[%emt 0:11:59]} Re6 {[%emt 0:26:43]} 17. Kh1 {[%emt 0:16:43]} Kh8 {[%emt 0:04:17]} 18. Qh4 {[%emt 0:08:08]} Ng8 {[%emt 0:06:10]} 19. b4 {[%emt 0:00:42]} b6 {[%emt 0:02:36]} 20. b5 {[%emt 0:05:59]} axb5 {[%emt 0:00:48]} 21. cxb5 {[%emt 0:00:01]} Qb7 {[%emt 0:00:01]} 22. Nxg7 {[%emt 0:01:56]} Bxg7 {[%emt 0:00:49]} 23. Rxf7 {[%emt 0:00:02]} Re5 {[%emt 0:07:36]} 24. Nf4 {[%emt 0:00:02]} Bh6 {[%emt 0:03:43]} 25. Bxe5+ {[%emt 0:03:21]} Nxe5 {[%emt 0:00:57]} 26. Rxb7 {[%emt 0:00:31]} Bxb7 {[%emt 0:00:01]} 27. Nd5 {[%emt 0:01:28]} Rxa2 {[%emt 0:02:19]} 28. Bb1 {[%emt 0:00:04]} Rb2 {[%emt 0:00:45]} 29. Ne7 {[%emt 0:01:12]} Rxb5 {[%emt 0:01:21]} 30. Nxg8 {[%emt 0:00:05]} 1-0

[Event "Almaty Open 2019"]
[Site "Almaty"]
[Date "2019.10.11"]
[Round "6.15"]
[White "Kairbekova, Amina"]
[Black "Bekturov, Tamerlan"]
[Result "1/2-1/2"]
[ECO "B17"]
[WhiteElo "2096"]
[BlackElo "2226"]
[Annotator "ChessBase"]
[PlyCount "90"]
[EventDate "2019.10.07"]
[EventType "swiss"]
[EventCountry "KAZ"]
[SourceTitle "playchess.com"]
[Source "ChessBase"]
[SourceQuality "1"]
[TimeControl "5400+30"]

1. e4 {[%emt 0:00:00]} c6 {[%emt 0:00:00]} 2. d4 {[%emt 0:00:00]} d5 {[%emt 0:00:00]} 3. Nd2 {[%emt 0:00:00]} dxe4 {[%emt 0:00:54]} 4. Nxe4 {[%emt 0:00:00]} Nd7 {[%emt 0:00:06]} 5. Ng5 {[%emt 0:00:00]} Ngf6 {[%emt 0:00:05]} 6. Bd3 {[%emt 0:00:03]} e6 {[%emt 0:02:19]} 7. N1f3 {[%emt 0:00:07]} Bd6 {[%emt 0:01:22]} 8. Qe2 {[%emt 0:00:20]} h6 {[%emt 0:00:08]} 9. Ne4 {[%emt 0:00:05]} Nxe4 {[%emt 0:00:05]} 10. Qxe4 {[%emt 0:00:06]} Nf6 {[%emt 0:00:05]} 11. Qe2 {[%emt 0:00:08]} Qc7 {[%emt 0:03:28]} 12. Bd2 {[%emt 0:00:12]} b6 {[%emt 0:00:50]} 13. O-O-O {[%emt 0:00:16]} Bb7 {[%emt 0:00:13]} 14. Ne5 {[%emt 0:00:07]} O-O-O {[%emt 0:04:09]} 15. f4 {[%emt 0:00:18]} c5 {[%emt 0:04:16]} 16. dxc5 {[%emt 0:00:55]} Bxc5 {[%emt 0:01:32]} 17. Kb1 {[%emt 0:01:33]} Kb8 {[%emt 0:04:03]} 18. a3 {[%emt 0:00:57]} Ka8 {[%emt 0:06:12]} 19. Rhf1 {[%emt 0:03:04]} Bd6 {[%emt 0:05:56]} 20. g4 {[%emt 0:06:05]} Nd5 {[%emt 0:07:21]} 21. c4 {[%emt 0:02:26]} Nf6 {[%emt 0:00:08]} 22. Bc3 {[%emt 0:04:55]} Nh7 {[%emt 0:16:08]} 23. c5 {[%emt 0:21:36]} Bxc5 {[%emt 0:07:59]} 24. Bxh7 {[%emt 0:00:17]} Rxh7 {[%emt 0:00:48]} 25. Rxd8+ {[%emt 0:01:40]} Qxd8 {[%emt 0:00:08]} 26. Nxf7 {[%emt 0:03:44]} Qe7 {[%emt 0:03:29]} 27. Qd3 {[%emt 0:03:11]} g6 {[%emt 0:03:13]} 28. Ne5 {[%emt 0:00:51]} Qe8 {[%emt 0:00:50]} 29. Rd1 {[%emt 0:01:41]} Bd5 {[%emt 0:00:19]} 30. f5 {[%emt 0:11:27]} gxf5 {[%emt 0:00:29]} 31. gxf5 {[%emt 0:00:03]} Qa4 {[%emt 0:00:56]} 32. Bb4 {[%emt 0:04:23]} Rc7 {[%emt 0:06:34]} 33. fxe6 {[%emt 0:00:57]} Bxe6 {[%emt 0:00:06]} 34. Qf3+ {[%emt 0:02:40]} Kb8 {[%emt 0:00:08]} 35. Rd8+ {[%emt 0:00:56]} Bc8 {[%emt 0:00:18]} 36. Bc3 {[%emt 0:14:00]} Qb5 {[%emt 0:07:52]} 37. Qd5 {[%emt 0:04:50]} a5 {[%emt 0:03:17]} 38. Nc4 {[%emt 0:06:09]} Ka7 {[%emt 0:05:03]} 39. Nd6 {[%emt 0:05:11]} Qf1+ {[%emt 0:02:12]} 40. Ka2 {[%emt 0:00:01]} Bxd6 {[%emt 0:01:47]} 41. Rxd6 {[%emt 0:00:06]} Ba6 {[%emt 0:02:08]} 42. b3 {[%emt 0:01:05]} a4 {[%emt 0:01:06]} 43. Qd4 {[%emt 0:04:05]} axb3+ {[%emt 0:01:15]} 44. Kb2 {[%emt 0:00:20]} Qe2+ {[%emt 0:01:20]} 45. Kxb3 {[%emt 0:00:07]} Qb5+ {[%emt 0:00:48]} 1/2-1/2

[Event "Almaty Open 2019"]
[Site "Almaty"]
[Date "2019.10.11"]
[Round "6.16"]
[White "Bizhigitov, Zhangir"]
[Black "Balabayeva, Xeniya"]
[Result "1/2-1/2"]
[ECO "B40"]
[WhiteElo "2018"]
[BlackElo "1986"]
[Annotator "NA"]
[PlyCount "104"]
[EventDate "2019.10.07"]
[EventType "swiss"]
[EventCountry "KAZ"]
[SourceTitle "playchess.com"]
[Source "ChessBase"]
[SourceQuality "1"]
[TimeControl "5400+30"]

1. e4 {[%emt 0:00:00]} c5 {[%emt 0:00:00]} 2. Nf3 {[%emt 0:00:00]} e6 {[%emt 0:00:00]} 3. g3 {[%emt 0:00:38]} Nc6 {[%emt 0:00:00]} 4. Bg2 {[%emt 0:00:22]} g6 {[%emt 0:01:20]} 5. d4 {[%emt 0:01:35]} cxd4 {[%emt 0:04:43]} 6. Nxd4 {[%emt 0:00:20]} a6 {[%emt 0:10:46]} 7. O-O {[%emt 0:06:00]} Nge7 {[%emt 0:07:34]} 8. c4 {[%emt 0:06:13]} Bg7 {[%emt 0:03:14]} 9. Be3 {[%emt 0:02:11]} O-O {[%emt 0:04:49]} 10. Nc3 {[%emt 0:00:48]} Qc7 {[%emt 0:16:11]} 11. Rc1 {[%emt 0:05:21]} d6 {[%emt 0:04:24]} 12. b3 {[%emt 0:09:32]} Bd7 {[%emt 0:03:30]} 13. Qd2 {[%emt 0:05:10]} Rad8 {[%emt 0:05:26]} 14. Rfd1 {[%emt 0:06:44]} Nxd4 {[%emt 0:07:14]} 15. Bxd4 {[%emt 0:00:12]} Bc6 {[%emt 0:00:30]} 16. Bxg7 {[%emt 0:12:42]} Kxg7 {[%emt 0:00:02]} 17. Ne2 {[%emt 0:10:06]} b6 {[%emt 0:03:27]} 18. Rc3 {[%emt 0:03:24]} Rd7 {[%emt 0:03:18]} 19. h4 {[%emt 0:03:36]} Qb7 {[%emt 0:06:48]} 20. h5 {[%emt 0:04:10]} e5 {[%emt 0:02:31]} 21. h6+ {[%emt 0:02:13]} Kg8 {[%emt 0:00:59]} 22. Bh3 {[%emt 0:03:24]} f5 {[%emt 0:01:18]} 23. Rd3 {[%emt 0:01:04]} Rf6 {[%emt 0:00:37]} 24. Nc3 {[%emt 0:08:00]} fxe4 {[%emt 0:09:44]} 25. Bxd7 {[%emt 0:03:57]} exd3 {[%emt 0:00:13]} 26. Bxc6 {[%emt 0:00:25]} Nxc6 {[%emt 0:01:04]} 27. Ne4 {[%emt 0:01:20]} Rf3 {[%emt 0:00:54]} 28. Qg5 {[%emt 0:02:42]} Qc7 {[%emt 0:01:22]} 29. Qg4 {[%emt 0:01:17]} Nd4 {[%emt 0:00:53]} 30. Ng5 {[%emt 0:00:29]} Rf5 {[%emt 0:00:41]} 31. Rxd3 {[%emt 0:00:16]} d5 {[%emt 0:00:33]} 32. Nf3 {[%emt 0:01:07]} Ne2+ {[%emt 0:01:12]} 33. Kf1 {[%emt 0:00:32]} e4 {[%emt 0:00:10]} 34. Nd4 {[%emt 0:00:36]} exd3 {[%emt 0:00:45]} 35. Nxf5 {[%emt 0:00:10]} Qd7 {[%emt 0:00:13]} 36. Ne3 {[%emt 0:00:40]} Qxg4 {[%emt 0:00:37]} 37. Nxg4 {[%emt 0:00:03]} Nc3 {[%emt 0:00:06]} 38. Nf6+ {[%emt 0:00:46]} Kf7 {[%emt 0:00:46]} 39. Nxd5 {[%emt 0:00:08]} Nxa2 {[%emt 0:00:15]} 40. Ke1 {[%emt 0:00:58]} Nc1 {[%emt 0:00:23]} 41. Kd2 {[%emt 0:00:43]} Nxb3+ {[%emt 0:00:09]} 42. Kxd3 {[%emt 0:00:02]} Nc5+ {[%emt 0:00:06]} 43. Kd4 {[%emt 0:00:38]} Nd7 {[%emt 0:00:07]} 44. Nc7 {[%emt 0:00:50]} a5 {[%emt 0:00:13]} 45. Kd5 {[%emt 0:00:10]} a4 {[%emt 0:00:22]} 46. Nb5 {[%emt 0:00:04]} Ke7 {[%emt 0:00:22]} 47. Na3 {[%emt 0:00:22]} g5 {[%emt 0:00:43]} 48. Kc6 {[%emt 0:01:05]} Ke6 {[%emt 0:00:20]} 49. Kc7 {[%emt 0:00:24]} g4 {[%emt 0:00:31]} 50. Kc6 {[%emt 0:00:15]} Ke7 {[%emt 0:01:24]} 51. Kc7 {[%emt 0:00:12]} Ke6 {[%emt 0:00:30]} 52. Kc6 {[%emt 0:00:04]} Ke5 1/2-1/2

[Event "Almaty Open 2019"]
[Site "Almaty"]
[Date "2019.10.11"]
[Round "6.17"]
[White "Igen, Amir"]
[Black "Nurgaliyev, Sauat"]
[Result "1-0"]
[ECO "D37"]
[WhiteElo "1934"]
[BlackElo "1995"]
[Annotator "NA"]
[PlyCount "89"]
[EventDate "2019.10.07"]
[EventType "swiss"]
[EventCountry "KAZ"]
[SourceTitle "playchess.com"]
[Source "ChessBase"]
[SourceQuality "1"]
[TimeControl "5400+30"]

1. d4 {[%emt 0:00:00]} Nf6 {[%emt 0:00:00]} 2. c4 {[%emt 0:00:00]} e6 {[%emt 0:00:00]} 3. Nc3 {[%emt 0:00:00]} d5 {[%emt 0:00:15]} 4. Nf3 {[%emt 0:00:00]} a6 {[%emt 0:00:21]} 5. cxd5 {[%emt 0:01:35]} exd5 {[%emt 0:00:27]} 6. Bg5 {[%emt 0:00:06]} Be7 {[%emt 0:04:28]} 7. e3 {[%emt 0:00:06]} O-O {[%emt 0:00:23]} 8. Bd3 {[%emt 0:00:15]} h6 {[%emt 0:00:35]} 9. Bh4 {[%emt 0:01:07]} b6 {[%emt 0:01:27]} 10. Ne5 {[%emt 0:05:24]} Bb7 {[%emt 0:01:13]} 11. O-O {[%emt 0:00:11]} Nbd7 {[%emt 0:01:07]} 12. f4 {[%emt 0:09:46]} c5 {[%emt 0:04:11]} 13. Qf3 {[%emt 0:01:03]} b5 {[%emt 0:04:55]} 14. a3 {[%emt 0:09:40]} c4 {[%emt 0:13:41]} 15. Bf5 {[%emt 0:00:10]} Nb6 {[%emt 0:01:36]} 16. Bxf6 {[%emt 0:06:13]} Bxf6 {[%emt 0:01:05]} 17. Qg4 {[%emt 0:00:05]} Qd6 {[%emt 0:05:29]} 18. Rf3 {[%emt 0:02:43]} Bc8 {[%emt 0:08:37]} 19. Rg3 {[%emt 0:13:54]} Bxf5 {[%emt 0:06:44]} 20. Qxf5 {[%emt 0:00:03]} Kh8 {[%emt 0:02:07]} 21. Qh5 {[%emt 0:01:53]} Qe6 {[%emt 0:01:34]} 22. Ng4 {[%emt 0:01:13]} Kh7 {[%emt 0:14:11]} 23. Rh3 {[%emt 0:00:47]} Rh8 {[%emt 0:03:55]} 24. Nxh6 {[%emt 0:04:04]} g6 {[%emt 0:01:15]} 25. Qf3 {[%emt 0:00:24]} Kg7 {[%emt 0:01:14]} 26. f5 {[%emt 0:00:34]} Qe7 {[%emt 0:01:53]} 27. Ng4 {[%emt 0:00:21]} Rxh3 {[%emt 0:01:01]} 28. Qxh3 {[%emt 0:00:06]} Rh8 {[%emt 0:00:14]} 29. Qf3 {[%emt 0:00:05]} Rh5 {[%emt 0:02:24]} 30. fxg6 {[%emt 0:06:44]} fxg6 {[%emt 0:00:40]} 31. Rf1 {[%emt 0:01:39]} Rf5 {[%emt 0:00:30]} 32. Qh3 {[%emt 0:00:04]} Rh5 {[%emt 0:01:01]} 33. Qg3 {[%emt 0:01:06]} Bh4 {[%emt 0:00:51]} 34. Qf4 {[%emt 0:04:30]} Bg5 {[%emt 0:01:19]} 35. Qf3 {[%emt 0:00:28]} Bh6 {[%emt 0:03:50]} 36. Nxh6 {[%emt 0:04:57]} Rxh6 {[%emt 0:00:40]} 37. g4 {[%emt 0:02:56]} g5 {[%emt 0:01:56]} 38. Kg2 {[%emt 0:01:24]} Re6 {[%emt 0:01:16]} 39. Re1 {[%emt 0:03:25]} Qd6 {[%emt 0:01:53]} 40. Qf5 {[%emt 0:02:34]} Rg6 {[%emt 0:01:22]} 41. Rf1 {[%emt 0:00:06]} Qe7 {[%emt 0:00:33]} 42. Rf3 {[%emt 0:00:45]} b4 {[%emt 0:01:16]} 43. axb4 {[%emt 0:01:38]} Qxb4 {[%emt 0:00:40]} 44. Qf7+ {[%emt 0:00:06]} Kh6 {[%emt 0:00:19]} 45. Rh3# {[%emt 0:00:04]} 1-0

[Event "Almaty Open 2019"]
[Site "Almaty"]
[Date "2019.10.11"]
[Round "6.18"]
[White "Baimurzin, Aitkazy"]
[Black "Zhakshylykov, Erzhan"]
[Result "1-0"]
[ECO "A15"]
[WhiteElo "2036"]
[BlackElo "1999"]
[Annotator "NA"]
[PlyCount "95"]
[EventDate "2019.10.07"]
[EventType "swiss"]
[EventCountry "KAZ"]
[SourceTitle "playchess.com"]
[Source "ChessBase"]
[SourceQuality "1"]
[TimeControl "5400+30"]

1. c4 {[%emt 0:00:00]} Nf6 {[%emt 0:02:06]} 2. g3 {[%emt 0:01:12]} g6 {[%emt 0:01:22]} 3. Bg2 {[%emt 0:00:21]} Bg7 {[%emt 0:00:30]} 4. Nc3 {[%emt 0:00:39]} c6 {[%emt 0:01:50]} 5. e4 {[%emt 0:01:15]} d6 {[%emt 0:00:44]} 6. d4 {[%emt 0:01:48]} Nbd7 {[%emt 0:01:11]} 7. Nge2 {[%emt 0:01:48]} O-O {[%emt 0:01:53]} 8. O-O {[%emt 0:01:11]} e5 {[%emt 0:05:24]} 9. h3 {[%emt 0:03:54]} Re8 {[%emt 0:06:33]} 10. d5 {[%emt 0:03:40]} cxd5 {[%emt 0:05:49]} 11. cxd5 {[%emt 0:00:38]} a6 {[%emt 0:01:24]} 12. a4 {[%emt 0:01:39]} b6 {[%emt 0:01:25]} 13. b4 {[%emt 0:02:08]} Bb7 {[%emt 0:02:33]} 14. Be3 {[%emt 0:04:00]} Rc8 {[%emt 0:02:22]} 15. Qd2 {[%emt 0:03:00]} Rc4 {[%emt 0:04:30]} 16. Rab1 {[%emt 0:10:47]} Qc7 {[%emt 0:02:35]} 17. Rfc1 {[%emt 0:01:09]} Rc8 {[%emt 0:02:51]} 18. f3 {[%emt 0:00:45]} Ne8 {[%emt 0:13:33]} 19. g4 {[%emt 0:03:54]} f5 {[%emt 0:05:13]} 20. Na2 {[%emt 0:08:27]} Rxc1+ {[%emt 0:05:09]} 21. Rxc1 {[%emt 0:00:46]} Qd8 {[%emt 0:00:27]} 22. Bf1 {[%emt 0:01:57]} Rxc1 {[%emt 0:08:35]} 23. Qxc1 {[%emt 0:02:44]} f4 {[%emt 0:14:02]} 24. Bf2 {[%emt 0:00:36]} Bf6 {[%emt 0:01:35]} 25. Qe1 {[%emt 0:01:38]} g5 {[%emt 0:01:44]} 26. Nec3 {[%emt 0:00:23]} Qc7 {[%emt 0:00:23]} 27. Bd3 {[%emt 0:00:34]} h6 {[%emt 0:00:21]} 28. Kg2 {[%emt 0:00:29]} Kg7 {[%emt 0:00:19]} 29. Qf1 {[%emt 0:02:38]} Qc8 {[%emt 0:00:12]} 30. Qb1 {[%emt 0:00:25]} Bd8 {[%emt 0:00:31]} 31. Qb2 {[%emt 0:00:29]} Kg8 {[%emt 0:00:35]} 32. Nc1 {[%emt 0:00:57]} Kg7 {[%emt 0:00:46]} 33. Nb3 {[%emt 0:00:50]} Qc7 {[%emt 0:01:18]} 34. Nb1 {[%emt 0:03:29]} Kg8 {[%emt 0:00:51]} 35. Na3 {[%emt 0:00:27]} Qb8 {[%emt 0:02:29]} 36. Qe2 {[%emt 0:01:22]} Qc8 {[%emt 0:01:16]} 37. Nc4 {[%emt 0:00:34]} Bc7 {[%emt 0:01:28]} 38. a5 {[%emt 0:12:45]} b5 {[%emt 0:00:29]} 39. Nb6 {[%emt 0:02:14]} Qd8 {[%emt 0:01:14]} 40. Bxb5 {[%emt 0:04:18]} axb5 {[%emt 0:01:08]} 41. Qxb5 {[%emt 0:00:23]} Nb8 {[%emt 0:00:40]} 42. Qa4 {[%emt 0:01:54]} Bxb6 {[%emt 0:01:06]} 43. axb6 {[%emt 0:00:52]} Nd7 {[%emt 0:00:28]} 44. Qa7 {[%emt 0:03:02]} Qc8 {[%emt 0:00:31]} 45. Na5 {[%emt 0:00:40]} Bxd5 {[%emt 0:00:34]} 46. exd5 {[%emt 0:00:29]} Nb8 {[%emt 0:00:30]} 47. b7 {[%emt 0:00:51]} Qc7 {[%emt 0:00:20]} 48. Nc6 {[%emt 0:00:16]} 1-0